bitfinex/quotes_BTCUSD_20240729
["timestamp","ask_amount","ask_price","bid_price","bid_amount"]
[1722272426250,0.02343153,66956.0,66955.0,0.05]
[1722272426406,0.07543153,66956.0,66955.0,0.05]
[1722272426619,0.07543153,66956.0,66945.0,0.321751]
[1722272426620,0.05,66953.0,66952.0,0.05]
[1722272427224,0.05,66953.0,66952.0,0.498081]
[1722272427424,0.07154355,66975.0,66952.0,0.498081]
[1722272427425,0.002,66961.0,66960.0,0.05]
[1722272427636,0.052,66961.0,66960.0,0.05]
[1722272427833,0.05,66957.0,66956.0,0.05]
[1722272427996,0.052,66957.0,66956.0,0.05]
[1722272428643,0.002,66960.0,66959.0,0.199345]
[1722272428856,0.07154355,66975.0,66964.0,0.149333]
[1722272429018,0.07154355,66975.0,66972.0,0.00449421]
[1722272429217,0.07154355,66982.0,66981.0,0.45238221]
[1722272429394,0.07154355,66982.0,66981.0,0.15379021]
[1722272429597,0.0818,67001.0,66966.0,0.0602]
[1722272429598,0.0818,67001.0,66987.0,0.00449421]
[1722272429860,0.0818,67001.0,66968.0,0.298647]
[1722272429861,0.14309939,66988.0,66968.0,0.298647]
[1722272430069,0.09496524,66989.0,66988.0,0.00449421]
[1722272430274,0.02342169,66989.0,66988.0,0.45233421]
[1722272430480,0.12154355,66989.0,66988.0,0.00449421]
[1722272430654,0.12154355,66989.0,66988.0,0.36321903]
[1722272430863,0.07154355,67013.0,66995.0,0.15375821]
[1722272431020,0.002,66998.0,66995.0,0.15375821]
[1722272431219,0.002,66998.0,66969.0,0.14309939]
[1722272431220,0.07154355,67013.0,67002.0,0.00449421]
[1722272431456,0.07154355,67013.0,66990.0,0.00449421]
[1722272431457,0.05,66991.0,66990.0,0.00449421]
[1722272431658,0.05,66995.0,66994.0,0.149267]
[1722272431964,0.07154355,67013.0,67004.0,0.00449421]
[1722272432170,0.002,67013.0,67012.0,0.15371921]
[1722272432364,0.13264355,67042.0,67012.0,0.15371921]
[1722272432365,0.13264355,67042.0,67024.0,0.00449421]
[1722272432612,0.13264355,67042.0,67028.0,0.00449421]
[1722272432851,0.13264355,67042.0,67016.0,0.298435]
[1722272432852,0.21464294,67029.0,67022.0,0.00449421]
[1722272432987,0.21464294,67029.0,67019.0,0.00449421]
[1722272432988,0.052,67020.0,67019.0,0.00449421]
[1722272433213,0.002,67024.0,67023.0,0.447607]
[1722272433413,0.05,67020.0,67019.0,0.00449421]
[1722272433614,0.02340707,67024.0,67020.0,0.00449421]
[1722272433816,0.02340707,67024.0,66997.0,0.376919]
[1722272433817,0.07154355,67023.0,67022.0,0.00449421]
[1722272434447,0.05,67024.0,67023.0,0.00449421]
[1722272434664,0.07154355,67035.0,67023.0,0.02749421]
[1722272434899,0.07154355,67035.0,67029.0,0.00449421]
[1722272435225,0.05,67022.0,67021.0,0.00449421]
[1722272435482,0.07154355,67042.0,67021.0,0.00449421]
[1722272435483,0.07154355,67042.0,67031.0,0.15367821]
[1722272435713,0.07154355,67042.0,67031.0,0.17667821]
[1722272435714,0.05,67033.0,67031.0,0.17667821]
[1722272435958,0.07154355,67042.0,67031.0,0.47504721]
[1722272436154,0.07154355,67042.0,67031.0,0.470553]
[1722272436356,0.07154355,67049.0,67031.0,0.66565132]
[1722272436624,0.07154355,67049.0,67031.0,0.96402032]
[1722272437134,0.052,67050.0,67049.0,0.00449421]
[1722272437392,0.052,67049.0,67048.0,0.00449421]
[1722272437643,0.052,67049.0,67048.0,0.02749421]
[1722272438344,0.02339879,67049.0,67048.0,0.2342936]
[1722272438570,0.07339879,67049.0,67048.0,0.11462357]
[1722272438813,0.052,67050.0,67049.0,0.00449421]
[1722272439042,0.07154355,67055.0,67054.0,0.00449421]
[1722272439269,0.05,67043.0,67026.0,0.0015542]
[1722272439529,0.07154355,67055.0,67036.0,0.298344]
[1722272439530,0.05,67046.0,67036.0,0.298344]
[1722272439755,0.07154355,67055.0,67039.0,0.149165]
[1722272439756,0.05,67044.0,67039.0,0.149165]
[1722272440023,0.002,67050.0,67040.0,0.14309939]
[1722272440243,0.1,67063.0,67040.0,0.14309939]
[1722272440467,0.05,67053.0,67052.0,0.823187]
[1722272440691,0.05,67053.0,67052.0,0.36973639]
[1722272440927,0.05,67053.0,67052.0,0.70498503]
[1722272441170,0.05,67053.0,67036.0,0.17154355]
[1722272441171,0.69669077,67036.0,67032.0,0.03312062]
[1722272441404,0.69669077,67036.0,66988.0,0.0775]
[1722272441405,0.298426,67019.0,66988.0,0.0775]
[1722272441671,0.298426,67019.0,66967.0,0.06389]
[1722272441672,0.052,66993.0,66992.0,0.42926131]
[1722272441946,0.052,66993.0,66978.0,0.3805]
[1722272441947,0.05,66983.0,66978.0,0.3805]
[1722272442409,0.05,66979.0,66978.0,0.3805]
[1722272442861,0.05,66985.0,66978.0,0.3805]
[1722272443080,0.149242,67005.0,66979.0,0.14309939]
[1722272443350,0.07154355,67021.0,66982.0,0.00081316]
[1722272443351,0.42926131,67000.0,66982.0,0.00081316]
[1722272443583,0.0498,66989.0,66980.0,0.08142004]
[1722272443832,0.002,66992.0,66981.0,0.14309939]
[1722272444068,0.1,66999.0,66981.0,0.14309939]
[1722272444358,0.002,66992.0,66982.0,0.06825194]
[1722272444574,0.1,66999.0,66982.0,0.06825194]
[1722272444575,0.0498,66988.0,66983.0,0.00113893]
[1722272444798,0.1,66999.0,66983.0,0.14423832]
[1722272445018,0.002,67000.0,66983.0,0.14423832]
[1722272445280,0.0498,66986.0,66985.0,0.00113893]
[1722272445498,0.0498,66989.0,66984.0,0.03627873]
[1722272445721,0.0498,66989.0,66985.0,0.00137738]
[1722272445955,0.002,66992.0,66984.0,0.03627873]
[1722272445956,0.0498,66985.0,66984.0,0.03627873]
[1722272446188,0.0498,66979.0,66978.0,0.3805]
[1722272446395,0.0498,66979.0,66946.0,0.05]
[1722272446396,0.0498,66972.0,66965.0,0.147]
[1722272446561,0.002,66976.0,66966.0,0.14309939]
[1722272446562,0.0498,66971.0,66966.0,0.14309939]
[1722272446792,0.0498,66971.0,66951.0,0.348722]
[1722272446793,0.0498,66963.0,66941.0,0.147]
[1722272447108,0.07154355,66967.0,66941.0,0.147]
[1722272447109,0.0498,66953.0,66942.0,0.381]
[1722272447391,0.0498,66951.0,66942.0,0.381]
[1722272447531,0.07154355,66960.0,66942.0,0.381]
[1722272447532,0.0498,66949.0,66943.0,0.0381]
[1722272447747,0.0498,66949.0,66933.0,0.0824]
[1722272447748,0.0498,66943.0,66932.0,0.1457]
[1722272447972,0.07354355,66947.0,66933.0,0.14309939]
[1722272448240,0.002,66942.0,66933.0,0.14309939]
[1722272448663,0.0498,66945.0,66933.0,0.14309939]
[1722272448862,0.07154355,66953.0,66934.0,0.02887994]
[1722272448863,0.0498,66938.0,66934.0,0.02887994]
[1722272449063,0.02343435,66940.0,66934.0,0.17197933]
[1722272449265,0.02343435,66940.0,66935.0,0.21464294]
[1722272449486,0.42926131,66966.0,66943.0,0.05]
[1722272449742,0.42926131,66966.0,66953.0,0.14309939]
[1722272449945,0.47906131,66966.0,66953.0,0.14309939]
[1722272450148,0.0498,66960.0,66953.0,0.14309939]
[1722272450294,0.43126131,66966.0,66953.0,0.14309939]
[1722272450295,0.0498,66962.0,66953.0,0.14309939]
[1722272450499,0.0498,66960.0,66954.0,0.05224584]
[1722272450676,0.50080486,66985.0,66956.0,0.0002]
[1722272450677,0.42926131,66985.0,66956.0,0.0002]
[1722272450878,0.27926375,66984.0,66966.0,0.149328]
[1722272451082,0.27926375,66983.0,66967.0,0.16609939]
[1722272451465,0.298523,66997.0,66971.0,0.149317]
[1722272451466,0.15514674,66982.0,66971.0,0.149317]
[1722272451668,0.0498,66978.0,66972.0,0.16609939]
[1722272451905,0.002,66982.0,66972.0,0.16609939]
[1722272451906,0.15514674,66977.0,66972.0,0.15039939]
[1722272452112,0.15514674,66976.0,66972.0,0.15039939]
[1722272452325,0.15514674,66975.0,66974.0,0.149311]
[1722272452535,0.15510163,66984.0,66983.0,0.298583]
[1722272452741,0.15508911,66984.0,66983.0,0.59097339]
[1722272452943,0.0498,67002.0,66983.0,0.59097339]
[1722272452944,0.0498,67002.0,66991.0,0.149271]
[1722272453074,0.002,67006.0,66992.0,0.16609939]
[1722272453075,0.27912759,67001.0,66992.0,0.16609939]
[1722272453273,0.298456,67012.0,66992.0,0.16609939]
[1722272453274,0.0498,66998.0,66992.0,0.16609939]
[1722272453478,0.27912759,66997.0,66993.0,0.03153764]
[1722272453776,0.27912759,66996.0,66994.0,0.16609939]
[1722272454039,0.15507089,66995.0,66994.0,0.16609939]
[1722272454245,0.15506212,66997.0,66995.0,0.1378]
[1722272454432,0.07154355,67021.0,66995.0,0.1378]
[1722272454433,0.0498,67017.0,67000.0,0.298503]
[1722272454594,0.0498,67017.0,66995.0,0.436326]
[1722272454595,0.57364574,67016.0,67001.0,0.21257963]
[1722272454919,0.0498,67012.0,67001.0,0.16609939]
[1722272455129,0.27906696,67011.0,67004.0,0.14309939]
[1722272455353,0.002,67016.0,67004.0,0.14309939]
[1722272455354,0.27906696,67010.0,67009.0,0.149233]
[1722272455527,0.27906696,67010.0,67009.0,0.61379939]
[1722272455772,0.15503939,67010.0,67009.0,0.16609939]
[1722272456195,0.279058,67010.0,67009.0,0.16609939]
[1722272456348,0.279058,67010.0,67009.0,0.18270933]
[1722272456960,0.328858,67010.0,67009.0,0.18270933]
[1722272457160,0.279058,67010.0,67009.0,0.18270933]
[1722272457961,0.328858,67010.0,67009.0,0.16609939]
[1722272458147,0.32886312,67010.0,67009.0,0.16609939]
[1722272458374,0.0498,67003.0,66998.0,0.3805]
[1722272458575,0.30886312,67002.0,66999.0,0.14309939]
[1722272458776,0.27906312,67001.0,67000.0,0.0015542]
[1722272458978,0.27906312,67001.0,67000.0,0.32215195]
[1722272459179,0.27906312,67001.0,67000.0,1.21767295]
[1722272459180,0.15503939,67001.0,67000.0,1.21767295]
[1722272459376,0.15503939,67001.0,67000.0,1.21611875]
[1722272459579,0.15503939,67001.0,67000.0,0.61910475]
[1722272460022,0.15503939,67001.0,67000.0,0.16609939]
[1722272460355,0.27906708,67001.0,67000.0,0.16609939]
[1722272461238,0.27907154,67001.0,67000.0,0.16609939]
[1722272461592,0.45812254,67001.0,67000.0,0.14309939]
[1722272461716,1.05322245,67001.0,67000.0,0.14309939]
[1722272461929,1.05322245,67001.0,67000.0,0.14709939]
[1722272462135,1.05322245,67001.0,67000.0,0.004]
[1722272462136,1.35172545,67001.0,67000.0,0.004]
[1722272462340,1.07662,66997.0,66996.0,0.0015542]
[1722272462544,2.13489775,66997.0,66996.0,0.0015542]
[1722272463142,2.23489775,66997.0,66996.0,0.0015542]
[1722272463399,2.32796225,66997.0,66996.0,0.0015542]
[1722272463620,0.0298,66978.0,66973.0,0.0804]
[1722272463820,0.179109,66975.0,66974.0,0.15113939]
[1722272463994,1.23000239,66975.0,66974.0,0.14309939]
[1722272464199,0.179133,66964.0,66963.0,0.0816]
[1722272464395,0.4582621,66964.0,66963.0,0.22469939]
[1722272464599,0.3089291,66964.0,66963.0,0.14309939]
[1722272464780,0.82098486,66964.0,66963.0,0.14309939]
[1722272465215,1.05170243,66964.0,66963.0,0.14309939]
[1722272465414,0.57390243,66964.0,66963.0,0.14309939]
[1722272465615,0.60370243,66964.0,66963.0,0.15740933]
[1722272465816,0.60370243,66964.0,66963.0,0.60541733]
[1722272465817,0.2791291,66964.0,66963.0,0.60541733]
[1722272465979,0.2791291,66964.0,66963.0,0.90408933]
[1722272466220,0.15503939,66964.0,66963.0,0.90408933]
[1722272466452,0.17846332,66964.0,66963.0,0.90408933]
[1722272466663,0.17846332,66964.0,66963.0,0.15740933]
[1722272467152,0.17846332,66964.0,66963.0,0.16609939]
[1722272467393,0.27913752,66964.0,66963.0,0.46477139]
[1722272467608,0.27913752,66964.0,66963.0,0.91277939]
[1722272467817,0.27913752,66964.0,66963.0,0.16609939]
[1722272467818,0.15503939,66964.0,66963.0,0.16609939]
[1722272468028,0.298641,66970.0,66963.0,0.16609939]
[1722272468269,0.37098446,66969.0,66957.0,0.298696]
[1722272468487,0.37098446,66969.0,66953.0,0.1]
[1722272468488,0.27913505,66968.0,66964.0,0.149333]
[1722272468703,0.0298,66963.0,66951.0,0.1]
[1722272468926,0.298645,66970.0,66952.0,0.02968]
[1722272468927,0.30893505,66962.0,66952.0,0.02968]
[1722272469166,0.27913505,66961.0,66953.0,0.027648]
[1722272469391,0.001,66964.0,66954.0,0.14309939]
[1722272469392,0.0298,66955.0,66954.0,0.14309939]
[1722272469751,0.15503939,66955.0,66954.0,0.14309939]
[1722272469976,0.37100444,66955.0,66954.0,0.14309939]
[1722272470183,0.51187628,66955.0,66954.0,0.29245539]
[1722272470396,0.57393782,66955.0,66954.0,0.33638093]
[1722272470613,0.57393782,66955.0,66954.0,0.93380493]
[1722272470614,0.59736267,66955.0,66954.0,0.93380493]
[1722272470817,0.5353046,66955.0,66954.0,1.23251693]
[1722272471090,0.30259045,66955.0,66954.0,0.63509293]
[1722272471427,0.53529872,66955.0,66954.0,0.18702493]
[1722272471631,0.597355,66955.0,66954.0,0.50873693]
[1722272471775,0.597355,66955.0,66954.0,0.21002493]
[1722272471944,1.077217,66955.0,66954.0,0.14309939]
[1722272472351,0.75508068,66955.0,66954.0,0.14309939]
[1722272472614,0.72328068,66955.0,66949.0,0.1505875]
[1722272472840,0.57392668,66954.0,66950.0,0.14309939]
[1722272472969,0.179162,66951.0,66950.0,0.14309939]
[1722272473190,0.179162,66951.0,66942.0,0.00122391]
[1722272473191,0.0298,66943.0,66942.0,0.00122391]
[1722272473400,0.0298,66943.0,66942.0,0.14309939]
[1722272473401,0.18483939,66943.0,66942.0,0.14309939]
[1722272473767,0.37103505,66943.0,66942.0,0.14309939]
[1722272473972,0.34123505,66943.0,66942.0,0.29248239]
[1722272474177,0.37103505,66943.0,66942.0,0.20983603]
[1722272474377,0.37103505,66943.0,66942.0,0.14309939]
[1722272474501,0.0298,66934.0,66933.0,0.0629]
[1722272474710,0.18483939,66934.0,66933.0,0.14309939]
[1722272474911,0.34124276,66934.0,66933.0,0.14309939]
[1722272475108,0.34124276,66934.0,66933.0,0.90442433]
[1722272475310,0.27916526,66934.0,66933.0,0.60561833]
[1722272475510,0.15503939,66934.0,66933.0,1.20323033]
[1722272475738,0.15517509,66948.0,66947.0,0.298743]
[1722272475984,0.5205434,66948.0,66947.0,0.14309939]
[1722272476168,0.5205434,66948.0,66933.0,0.01430994]
[1722272476169,0.0298,66941.0,66938.0,0.0015542]
[1722272476319,0.27930925,66940.0,66939.0,0.59126739]
[1722272476521,0.27930925,66940.0,66904.0,0.06644372]
[1722272476522,0.56130864,66940.0,66904.0,0.06644372]
[1722272476727,0.56130864,66940.0,66852.0,0.01672903]
[1722272476728,0.0016,66873.0,66852.0,0.01672903]
[1722272476966,1.046619,66882.0,66828.0,0.01349888]
[1722272477189,0.01562246,66904.0,66800.0,0.21706171]
[1722272477190,0.5015,66853.0,66800.0,0.21706171]
[1722272477378,1.06625817,66872.0,66752.0,0.04418044]
[1722272477379,0.04999677,66812.0,66752.0,0.04418044]
[1722272477594,0.04999677,66812.0,66675.0,0.12154355]
[1722272477595,0.04393447,66706.0,66675.0,0.12154355]
[1722272477986,0.04393447,66706.0,66667.0,0.15964542]
[1722272477987,0.04102802,66668.0,66667.0,0.15964542]
[1722272478204,0.04102802,66668.0,66667.0,0.1589766]
[1722272478513,0.04102802,66679.0,66667.0,0.15375416]
[1722272478680,0.299855,66699.0,66667.0,0.15375416]
[1722272478681,0.47125034,66693.0,66668.0,0.0645]
[1722272478922,0.04102802,66679.0,66668.0,0.0545]
[1722272479097,0.08470069,66704.0,66667.0,0.18036182]
[1722272479098,0.08301705,66704.0,66667.0,0.18036182]
[1722272479309,0.299782,66715.0,66667.0,0.18036182]
[1722272479310,0.04102802,66702.0,66668.0,0.02874618]
[1722272479517,0.05102802,66668.0,66667.0,0.01951562]
[1722272479724,0.21233927,66668.0,66667.0,0.01951562]
[1722272479935,0.299926,66683.0,66666.0,95.06096876]
[1722272480192,0.42926131,66710.0,66681.0,0.05]
[1722272480433,0.05,66731.0,66667.0,0.08610673]
[1722272480434,0.0026099,66741.0,66677.0,1.00990325]
[1722272480633,0.42926131,66710.0,66702.0,0.0778]
[1722272480837,0.42926131,66749.0,66726.0,0.05]
[1722272481074,0.42926131,66749.0,66722.0,0.05]
[1722272481271,0.42926131,66749.0,66719.0,0.05]
[1722272481272,0.07154355,66734.0,66719.0,0.05]
[1722272481497,0.50080486,66766.0,66720.0,0.07154355]
[1722272481649,0.30837328,66766.0,66735.0,0.07154355]
[1722272481853,0.42926131,66783.0,66736.0,0.91489521]
[1722272481854,0.42926131,66765.0,66736.0,0.91489521]
[1722272482015,0.42926131,66783.0,66739.0,0.05]
[1722272482217,0.42926131,66783.0,66739.0,0.0805]
[1722272482477,0.07154355,66794.0,66739.0,0.0805]
[1722272482727,0.42926131,66775.0,66740.0,0.023]
[1722272482926,0.07154355,66786.0,66742.0,0.05]
[1722272483151,0.42926131,66785.0,66753.0,0.14309939]
[1722272483355,0.0631,66800.0,66746.0,0.12154355]
[1722272483356,0.42926131,66784.0,66783.0,0.149737]
[1722272483498,0.42926131,66784.0,66754.0,1.03789521]
[1722272483499,0.00022,66801.0,66760.0,0.14309939]
[1722272483668,0.00022,66801.0,66761.0,0.15230994]
[1722272484077,0.00022,66801.0,66800.0,0.1497]
[1722272484486,0.00022,66801.0,66796.0,0.299418]
[1722272484487,0.00022,66801.0,66796.0,0.149708]
[1722272484684,0.21464294,66800.0,66780.0,0.149744]
[1722272484935,0.21464294,66800.0,66731.0,0.05]
[1722272484936,0.07154355,66786.0,66731.0,0.05]
[1722272485103,0.07154355,66786.0,66717.0,0.1468]
[1722272485104,0.07154355,66747.0,66745.0,0.42926131]
[1722272485313,0.07154355,66747.0,66717.0,0.1468]
[1722272485542,0.07154355,66747.0,66727.0,0.149863]
[1722272485750,0.07154355,66762.0,66722.0,0.913]
[1722272485954,0.42926131,66755.0,66722.0,0.913]
[1722272486199,0.02350158,66743.0,66742.0,1.048813]
[1722272486392,0.07154355,66768.0,66738.0,0.913]
[1722272486611,0.07154355,66768.0,66746.0,0.149821]
[1722272486612,0.02349728,66747.0,66746.0,0.149821]
[1722272486810,0.02349728,66747.0,66746.0,0.749107]
[1722272487046,0.42926131,66792.0,66744.0,0.912]
[1722272487252,0.02349402,66766.0,66765.0,0.149779]
[1722272487538,0.42926131,66775.0,66765.0,0.149779]
[1722272487539,0.42926131,66775.0,66765.0,0.446358]
[1722272487742,0.42926131,66792.0,66791.0,0.14972]
[1722272487949,0.07154355,66806.0,66773.0,0.1]
[1722272488157,0.02348604,66792.0,66774.0,0.14309939]
[1722272488379,0.14309939,66775.0,66719.0,0.0833]
[1722272488542,0.14309939,66775.0,66724.0,0.42926131]
[1722272488543,0.07154355,66743.0,66724.0,0.42926131]
[1722272488766,0.07154355,66757.0,66719.0,0.0833]
[1722272489151,0.42926131,66756.0,66743.0,0.149827]
[1722272489344,0.42926131,66756.0,66719.0,0.0833]
[1722272489545,0.02350144,66748.0,66747.0,0.749095]
[1722272489766,0.02350144,66748.0,66747.0,1.19183239]
[1722272489977,0.02350144,66748.0,66747.0,1.49147039]
[1722272490185,0.02350144,66748.0,66747.0,1.47584793]
[1722272490561,0.02350144,66748.0,66747.0,0.87657193]
[1722272490911,0.02350144,66748.0,66747.0,1.26386712]
[1722272491039,0.00587536,66748.0,66747.0,1.38686712]
[1722272491239,0.42926131,66774.0,66760.0,0.299577]
[1722272491446,0.42926131,66774.0,66773.0,0.149761]
[1722272491650,0.0617,66791.0,66761.0,0.16609939]
[1722272491651,0.0617,66791.0,66782.0,0.14974]
[1722272491960,0.17154355,66799.0,66755.0,0.0603]
[1722272491961,0.07154355,66799.0,66755.0,0.0603]
[1722272492158,0.07154355,66799.0,66777.0,0.299502]
[1722272492362,0.42926131,66794.0,66793.0,0.74858]
[1722272492585,0.07154355,66806.0,66778.0,0.14309939]
[1722272492795,0.07154355,66806.0,66800.0,0.1497]
[1722272492954,0.07154355,66806.0,66771.0,0.299531]
[1722272492955,0.14531939,66801.0,66771.0,0.299531]
[1722272493149,0.14531939,66801.0,66765.0,0.761]
[1722272493150,0.07134355,66797.0,66772.0,0.19605249]
[1722272493350,0.07154355,66790.0,66772.0,0.19605249]
[1722272493610,0.07154355,66790.0,66778.0,0.299498]
[1722272493839,0.07134355,66797.0,66782.0,0.299481]
[1722272494042,0.07134355,66797.0,66796.0,0.449128]
[1722272494252,0.14309939,66797.0,66772.0,0.0299531]
[1722272494466,0.07154355,66784.0,66765.0,0.911]
[1722272494662,0.07154355,66784.0,66766.0,0.14309939]
[1722272495095,0.05,66789.0,66776.0,0.299505]
[1722272495299,0.07154355,66791.0,66777.0,0.14309939]
[1722272495665,0.07154355,66791.0,66765.0,0.911]
[1722272495666,0.06154355,66784.0,66765.0,0.911]
[1722272495828,0.06154355,66784.0,66781.0,0.149741]
[1722272496028,0.07154355,66791.0,66766.0,0.26526939]
[1722272496292,0.07154355,66799.0,66773.0,0.14309939]
[1722272496490,0.07154355,66799.0,66774.0,0.023]
[1722272496715,0.07154355,66785.0,66784.0,0.149736]
[1722272496895,0.12154355,66785.0,66777.0,0.149751]
[1722272497092,0.12154355,66785.0,66774.0,0.023]
[1722272497093,0.07154355,66785.0,66778.0,0.023]
[1722272497307,0.05,66783.0,66747.0,0.08765719]
[1722272497507,0.07154355,66775.0,66764.0,0.00807]
[1722272498088,0.07154355,66775.0,66774.0,0.149758]
[1722272498287,0.07154355,66775.0,66774.0,0.449275]
[1722272498489,0.07154355,66775.0,66774.0,0.149758]
[1722272498696,0.05,66767.0,66760.0,0.005]
[1722272498857,0.07154355,66761.0,66760.0,0.005]
[1722272499279,0.12154355,66765.0,66760.0,0.005]
[1722272499504,0.14309939,66764.0,66747.0,0.149818]
[1722272499700,0.14309939,66764.0,66703.0,0.750505]
[1722272499701,0.07154355,66748.0,66726.0,0.299733]
[1722272499876,0.05,66753.0,66719.0,0.299764]
[1722272499877,0.07154355,66741.0,66719.0,0.299764]
[1722272500055,0.0015542,66747.0,66719.0,0.299764]
[1722272500261,0.05,66753.0,66719.0,0.299764]
[1722272500262,0.0015542,66752.0,66734.0,0.299697]
[1722272500490,0.12154355,66741.0,66732.0,0.153052]
[1722272500659,0.12154355,66741.0,66732.0,0.0185052]
[1722272500660,0.07154355,66733.0,66732.0,0.0185052]
[1722272500886,0.07154355,66733.0,66732.0,0.0032]
[1722272501143,0.0015542,66740.0,66732.0,0.0032]
[1722272501398,0.0015542,66740.0,66700.0,0.1]
[1722272501565,0.07154355,66731.0,66729.0,0.299716]
[1722272501783,0.07154355,66739.0,66719.0,0.14309939]
[1722272501970,0.07154355,66739.0,66720.0,0.01430994]
[1722272502172,0.07154355,66747.0,66720.0,0.01430994]
[1722272502375,0.12154355,66747.0,66720.0,0.01430994]
[1722272502590,0.002,66770.0,66724.0,0.14309939]
[1722272502731,0.002,66770.0,66720.0,0.01430994]
[1722272502732,0.02350385,66741.0,66720.0,0.11430994]
[1722272502939,0.02350385,66741.0,66740.0,1.048845]
[1722272503174,0.05,66758.0,66740.0,0.023]
[1722272503325,0.02350107,66741.0,66725.0,0.9135]
[1722272503532,0.02350107,66741.0,66740.0,0.749175]
[1722272503734,0.05,66758.0,66726.0,0.1]
[1722272503932,0.02350171,66741.0,66740.0,0.149835]
[1722272504150,0.02350171,66741.0,66740.0,0.89227439]
[1722272504347,0.1,66767.0,66740.0,0.14309939]
[1722272504588,0.47926131,66754.0,66727.0,0.10135]
[1722272504909,0.14309939,66766.0,66728.0,0.14309939]
[1722272504910,0.05,66758.0,66728.0,0.14309939]
[1722272505082,0.42926131,66753.0,66729.0,0.12579494]
[1722272505342,0.05,66738.0,66729.0,0.12579494]
[1722272505545,0.05,66730.0,66712.0,0.299793]
[1722272505688,0.002,66737.0,66703.0,0.300759]
[1722272505689,0.05,66732.0,66703.0,0.300759]
[1722272505895,0.05,66736.0,66703.0,0.300759]
[1722272506100,0.12452954,66735.0,66721.0,0.14309939]
[1722272506311,0.12452954,66734.0,66721.0,0.14309939]
[1722272506515,0.12452954,66733.0,66722.0,0.01574093]
[1722272506784,0.12352954,66732.0,66731.0,0.749275]
[1722272506947,0.42926131,66752.0,66741.0,0.299664]
[1722272507151,0.05,66748.0,66747.0,0.149819]
[1722272507372,0.15562577,66748.0,66745.0,0.149822]
[1722272507627,0.15563108,66747.0,66732.0,0.299704]
[1722272507857,0.12190425,66757.0,66733.0,0.16609939]
[1722272507858,0.07154355,66757.0,66733.0,0.16609939]
[1722272508060,0.29872803,66756.0,66733.0,0.16609939]
[1722272508256,0.05,66748.0,66733.0,0.16609939]
[1722272508461,0.15562864,66747.0,66746.0,0.749107]
[1722272508817,0.00863552,66769.0,66746.0,0.749107]
[1722272508818,0.05037258,66760.0,66746.0,0.16609939]
[1722272508993,0.47963389,66771.0,66747.0,0.16609939]
[1722272509244,0.07154355,66761.0,66747.0,0.023]
[1722272509425,0.05,66752.0,66742.0,0.023]
[1722272509632,0.07154355,66753.0,66734.0,0.01660994]
[1722272509633,0.07154355,66746.0,66738.0,0.023]
[1722272509828,0.15558794,66745.0,66740.0,0.299668]
[1722272510026,0.15558794,66745.0,66741.0,0.023]
[1722272510027,0.15058794,66745.0,66741.0,0.023]
[1722272510226,0.05037258,66743.0,66742.0,0.149829]
[1722272510431,0.05037258,66744.0,66742.0,0.47249]
[1722272510597,0.07154355,66753.0,66743.0,0.102516]
[1722272510598,0.05,66751.0,66743.0,0.102516]
[1722272510792,0.02350035,66744.0,66741.0,0.023]
[1722272511042,0.02350035,66744.0,66743.0,0.74914]
[1722272511215,0.02350035,66744.0,66743.0,0.023]
[1722272511430,0.07388114,66744.0,66743.0,0.172828]
[1722272511634,0.02350035,66744.0,66743.0,0.023]
[1722272511842,0.0738797,66744.0,66739.0,0.023]
[1722272512079,0.02350035,66744.0,66743.0,0.449484]
[1722272512363,0.02350035,66744.0,66743.0,1.048796]
[1722272512588,0.05037935,66748.0,66747.0,0.449457]
[1722272512763,0.05037935,66749.0,66748.0,0.449451]
[1722272513062,0.1867412,66749.0,66748.0,0.29291639]
[1722272513307,0.1867412,66749.0,66748.0,0.023]
[1722272513308,0.18673931,66749.0,66748.0,0.023]
[1722272513422,0.18673931,66754.0,66748.0,0.023]
[1722272513617,0.49176131,66750.0,66747.0,0.299638]
[1722272513888,0.49176131,66750.0,66709.0,0.386]
[1722272513889,0.05,66727.0,66706.0,0.14991]
[1722272514093,0.05034373,66713.0,66707.0,0.42926131]
[1722272514310,0.05033817,66712.0,66700.0,0.0001]
[1722272514514,0.18684871,66712.0,66700.0,0.0001]
[1722272514809,0.05,66704.0,66700.0,0.0001]
[1722272514968,0.17490899,66704.0,66700.0,0.0001]
[1722272515132,0.05,66703.0,66700.0,0.0001]
[1722272515340,0.31142067,66702.0,66700.0,0.0001]
[1722272515539,0.299664,66742.0,66700.0,0.449875]
[1722272515540,0.1245911,66701.0,66700.0,0.449875]
[1722272515760,0.1245911,66701.0,66700.0,0.96779799]
[1722272515957,0.1245911,66701.0,66700.0,0.66794799]
[1722272516160,0.1245911,66701.0,66700.0,0.0001]
[1722272516404,0.17492272,66701.0,66700.0,0.0001]
[1722272516644,0.1245911,66701.0,66700.0,0.0001]
[1722272517239,0.14810916,66701.0,66700.0,0.150025]
[1722272517441,0.12457816,66701.0,66700.0,0.0001]
[1722272517847,0.12457816,66701.0,66685.0,0.065]
[1722272518050,0.12457816,66700.0,66692.0,0.299884]
[1722272518253,0.12457816,66699.0,66686.0,0.18723159]
[1722272518460,0.12457816,66698.0,66687.0,0.14309939]
[1722272518845,0.17490748,66697.0,66686.0,0.0441322]
[1722272519042,0.12457816,66696.0,66695.0,0.299872]
[1722272519167,0.12457816,66696.0,66687.0,0.14609806]
[1722272519168,0.12457816,66696.0,66687.0,0.14309939]
[1722272519370,0.15074355,66714.0,66675.0,0.062]
[1722272519371,0.12457816,66695.0,66689.0,0.299897]
[1722272519575,0.12457816,66694.0,66675.0,0.062]
[1722272519778,9.0,66700.0,66675.0,0.062]
[1722272519779,0.12457816,66693.0,66675.0,0.062]
[1722272519976,0.12613236,66692.0,66681.0,0.14309939]
[1722272520182,0.17457816,66691.0,66682.0,0.04523254]
[1722272520431,0.50080486,66699.0,66662.0,0.15001]
[1722272520432,0.052,66681.0,66662.0,0.15001]
[1722272520586,0.052,66681.0,66651.0,0.0607]
[1722272520587,0.32658382,66681.0,66651.0,0.0607]
[1722272520803,0.501997,66667.0,66666.0,95.00108876]
[1722272521001,0.31162569,66667.0,66666.0,95.00108876]
[1722272521204,1.07661082,66667.0,66666.0,95.00108876]
[1722272521388,1.25038655,66667.0,66666.0,95.00108876]